bitfinex/quotes_ETHUSD_20251230
["timestamp","ask_amount","ask_price","bid_price","bid_amount"]
[1767128840543,0.001,2962.8,2962.4,4.85501371]
[1767128840837,2.3488,2962.8,2962.2,4.85501371]
[1767128842915,2.3488,2962.8,2962.1,4.85501371]
[1767128844124,2.3488,2962.8,2961.8,0.002]
[1767128844330,2.3488,2962.8,2961.9,0.886]
[1767128844530,2.3478,2962.7,2961.9,0.886]
[1767128845338,2.3478,2962.7,2962.0,0.002]
[1767128852080,2.3478,2962.7,2961.8,0.888]
[1767128852238,2.3478,2962.6,2961.8,0.002]
[1767128853546,2.3478,2962.6,2962.0,0.002]
[1767128854060,2.3478,2962.6,2961.8,0.002]
[1767128855866,2.3478,2962.6,2961.8,0.006]
[1767128856860,2.3478,2962.6,2961.9,0.004]
[1767128861370,2.3488,2962.6,2961.9,0.004]
[1767128875179,2.3488,2962.6,2961.9,0.006]
[1767128875386,2.3236,2962.4,2961.9,0.006]
[1767128877585,2.3236,2962.4,2962.0,0.004]
[1767128880169,2.4724,2962.6,2962.0,0.004]
[1767128880373,2.4724,2962.6,2962.2,0.004]
[1767128884673,0.001,2963.0,2962.2,0.004]
[1767128884674,2.4724,2963.0,2962.5,0.004]
[1767128884972,2.4724,2963.0,2962.6,0.48590137]
[1767128885174,2.4724,2963.0,2962.5,0.004]
[1767128885374,0.001,2963.4,2962.8,4.85501371]
[1767128885579,2.4724,2963.4,2962.9,2.3522]
[1767128888533,0.001,2963.6,2963.0,4.85501371]
[1767128888678,0.001,2963.8,2963.3,2.3522]
[1767128888879,2.4724,2963.8,2963.0,2.3522]
[1767128889185,2.4724,2963.8,2963.1,3.2382]
[1767128889584,2.4724,2963.8,2963.1,0.886]
[1767128889797,2.4724,2963.8,2963.2,2.3522]
[1767128893938,0.001,2963.8,2963.2,2.3522]
[1767128894081,0.001,2963.8,2963.4,2.3522]
[1767128896826,1.41069046,2964.5,2963.6,2.4405]
[1767128896986,1.41069046,2964.5,2964.0,2.4405]
[1767128896987,3.68669046,2964.5,2964.0,2.4405]
[1767128897192,3.68669046,2964.5,2964.1,2.4405]
[1767128897193,1.41069046,2964.5,2964.1,2.4405]
[1767128898218,1.41069046,2964.5,2964.2,2.4405]
[1767128898587,1.41069046,2964.5,2963.7,2.4405]
[1767128898588,2.276,2964.4,2963.7,2.4405]
[1767128898811,2.276,2964.4,2963.7,3.3265]
[1767128899016,2.276,2964.4,2963.7,0.886]
[1767128899323,2.276,2964.4,2963.8,2.4405]
[1767128899907,2.276,2964.3,2963.4,2.4405]
[1767128900111,2.276,2963.9,2963.2,2.4405]
[1767128900824,7.63277761,2964.4,2963.1,0.886]
[1767128900825,2.276,2964.3,2963.4,2.4405]
[1767128902429,5.64950024,2964.3,2963.4,2.4405]
[1767128902612,2.276,2964.2,2963.4,2.4405]
[1767128902808,2.276,2964.3,2963.4,2.4405]
[1767128905114,2.277,2964.3,2963.4,2.4405]
[1767128906334,2.276,2964.2,2963.4,2.4405]
[1767128906830,2.276,2964.2,2963.4,0.886]
[1767128907031,2.276,2964.2,2963.5,2.4405]
[1767128911459,2.276,2964.1,2963.5,2.4405]
[1767128911649,2.276,2964.1,2963.2,3.3265]
[1767128912213,2.276,2964.1,2963.3,2.4405]
[1767128920951,2.277,2964.1,2963.3,2.4405]
[1767128921147,2.277,2964.1,2963.3,2.47424616]
[1767128921326,2.277,2964.1,2963.3,2.81047078]
[1767128921531,2.277,2964.1,2963.3,2.77672462]
[1767128921747,0.001,2964.1,2963.3,2.77672462]
[1767128922051,0.001,2964.2,2963.5,2.4405]
[1767128922261,1.41069046,2964.5,2963.5,2.4405]
[1767128922262,1.41069046,2964.5,2963.6,2.4405]
[1767128922425,1.41069046,2964.5,2963.8,2.4405]
[1767128923953,3.68669046,2964.5,2963.8,2.4405]
[1767128924143,2.276,2964.4,2963.8,2.4405]
[1767128925138,1.41069046,2964.5,2963.8,2.4405]
[1767128927557,2.3891,2964.4,2964.0,2.4674]
[1767128928239,1.41069046,2964.5,2964.0,2.80274]
[1767128929463,1.41169046,2964.5,2964.0,2.80274]
[1767128933759,2.3891,2964.4,2964.0,2.4674]
[1767128934854,1.41169046,2964.5,2964.0,2.4674]
[1767128935239,3.80079046,2964.5,2964.0,2.4674]
[1767128938568,0.001,2964.4,2964.0,2.4674]
[1767128941568,2.2752,2964.9,2964.0,1.0547]
[1767128941866,0.001,2965.0,2964.3,1.0547]
[1767128942072,2.2762,2965.0,2964.3,1.0547]
[1767128944976,2.2762,2965.0,2963.4,1.0547]
[1767128944977,4.85197115,2964.8,2963.4,1.0547]
[1767128945269,2.2752,2964.7,2963.6,1.0547]
[1767128946546,2.2762,2964.7,2963.6,1.0547]
[1767128948871,5.64928716,2964.7,2963.6,1.0547]
[1767128949075,2.2752,2964.6,2963.6,1.0547]
[1767128950349,0.001,2964.7,2963.9,1.0547]
[1767128950546,2.2762,2964.7,2964.1,1.0547]
[1767128950744,2.2762,2964.7,2964.1,1.24877]
[1767128951349,0.001,2964.7,2964.1,1.24877]
[1767128951552,0.001,2964.7,2964.3,1.0547]
[1767128951965,2.2762,2964.7,2964.3,1.0547]
[1767128953759,4.25970533,2965.0,2964.3,1.0547]
[1767128953760,2.2762,2965.0,2964.3,1.0547]
[1767128954086,2.2762,2965.0,2964.3,0.61007411]
[1767128954383,2.2762,2965.0,2964.4,1.0537]
[1767128954973,0.001,2964.7,2964.4,1.0537]
[1767128957583,2.2986,2964.7,2964.3,0.886]
[1767128957789,2.2986,2964.7,2964.4,1.0537]
[1767128960386,2.2986,2964.7,2964.3,1.0537]
[1767128961290,2.2986,2964.7,2964.3,1.24767]
[1767128962389,0.001,2965.0,2964.4,1.0527]
[1767128962390,2.2986,2965.0,2964.4,1.0527]
[1767128962973,3.37371612,2965.0,2964.2,1.9387]
[1767128963175,2.2976,2964.6,2964.3,1.0527]
[1767128963375,2.2976,2964.6,2964.2,0.886]
[1767128964379,2.2976,2964.6,2964.2,1.9387]
[1767128965801,2.2976,2964.6,2964.1,0.886]
[1767128966297,2.2976,2964.6,2964.1,1.8887]
[1767128966499,2.2976,2964.6,2964.1,0.886]
[1767128968603,2.2976,2964.6,2963.9,1.0027]
[1767128968804,2.2976,2964.6,2963.9,1.67642655]
[1767128969303,2.2976,2964.6,2963.9,1.0027]
[1767128969690,2.2976,2964.6,2963.6,1.8887]
[1767128969897,0.886,2964.5,2963.5,0.002]
[1767128970071,2.2976,2964.1,2963.1,1.8947]
[1767128970276,2.2976,2964.1,2963.2,5.52289202]
[1767128970891,2.2976,2964.1,2963.2,7.41559202]
[1767128971113,2.2976,2964.1,2963.4,4.84856547]
[1767128971611,2.2976,2964.1,2963.5,0.002]
[1767128972307,2.2976,2964.1,2963.4,4.84856547]
[1767128972610,2.2976,2964.1,2963.2,2.56702655]
[1767128972807,2.2976,2964.1,2963.2,1.8927]
[1767128972808,2.52736,2964.1,2963.2,1.8927]
[1767128973306,2.2976,2964.1,2963.4,1.8947]
[1767128973509,2.2976,2964.1,2963.1,0.002]
[1767128973711,2.2976,2964.0,2963.1,0.002]
[1767128975710,2.2976,2964.0,2963.1,1.8967]
[1767128981632,2.2976,2964.0,2963.1,0.002]
[1767128982909,2.2976,2963.6,2962.5,1.9007]
[1767128983108,2.2976,2963.6,2962.7,1.8987]
[1767128983312,2.2976,2963.6,2962.7,6.74726547]
[1767128983709,2.2976,2963.6,2962.8,1.8987]
[1767128984804,2.2976,2963.6,2962.8,2.66202655]
[1767128985025,2.2976,2963.6,2962.9,1.8987]
[1767128986117,2.2976,2963.6,2963.0,0.002]
[1767128986936,2.2976,2963.6,2962.8,0.76332655]
[1767128987104,2.481,2962.8,2962.1,0.002]
[1767128987434,2.481,2962.8,2962.1,0.24261]
[1767128988528,2.481,2962.8,2962.1,7.49127547]
[1767128988702,2.481,2962.8,2962.1,5.09117547]
[1767128989005,2.481,2962.8,2962.2,2.4001]
[1767128993619,2.481,2962.6,2961.8,0.002]
[1767128994641,2.481,2962.5,2961.4,2.4001]
[1767128994812,4.84856547,2962.6,2961.4,2.4001]
[1767128994813,2.481,2962.3,2961.4,2.4001]
[1767128995010,2.481,2962.3,2961.5,2.72891]
[1767129000343,2.481,2962.3,2961.5,2.73091]
[1767129005249,2.481,2962.3,2961.5,0.33081]
[1767129006022,2.394,2961.9,2961.3,0.002]
[1767129007124,2.394,2961.9,2961.5,0.002]
[1767129009239,2.394,2961.9,2961.3,0.002]
[1767129010546,2.394,2961.9,2961.0,0.888]
[1767129012150,2.394,2961.4,2960.7,2.3198]
[1767129012349,2.394,2961.4,2960.6,0.888]
[1767129012655,2.394,2961.4,2960.6,3.2058]
[1767129012853,2.394,2961.4,2960.7,2.3178]
[1767129013058,2.394,2961.4,2960.7,3.12323655]
[1767129013240,2.394,2961.4,2960.7,7.97180202]
[1767129016255,2.394,2961.4,2960.8,2.2844]
[1767129016454,2.394,2961.4,2960.9,7.13296547]
[1767129016655,2.4015,2961.8,2961.1,4.84856547]
[1767129016830,2.4015,2961.8,2961.2,0.03377009]
[1767129017026,2.4015,2961.8,2961.1,7.61782202]
[1767129018953,2.4015,2961.8,2961.1,2.76925655]
[1767129019162,2.4015,2961.8,2960.9,7.13296547]
[1767129020031,2.4015,2961.8,2961.0,0.002]
[1767129021556,2.4015,2961.8,2961.0,2.2864]
[1767129023256,2.4015,2961.8,2961.1,2.31817123]
[1767129026371,2.4015,2961.8,2961.2,2.2844]
[1767129026569,2.4015,2961.8,2961.3,3.00213701]
[1767129029046,2.4015,2961.8,2961.3,2.2844]
[1767129031619,0.001,2962.3,2961.7,4.8591989]
[1767129031768,2.4025,2962.8,2962.2,4.8591989]
[1767129031965,2.4025,2962.8,2962.0,0.887]
[1767129032159,2.4025,2962.8,2961.2,3.47840436]
[1767129032160,2.4015,2962.6,2962.1,4e-05]
[1767129032356,2.4015,2962.6,2961.7,0.887]
[1767129032574,2.4015,2962.6,2961.7,3.1714]
[1767129032779,2.4015,2962.6,2961.8,2.2844]
[1767129039989,2.4025,2962.6,2961.8,2.2844]
[1767129042391,2.4015,2962.4,2961.3,3.1704]
[1767129042685,2.4015,2962.2,2961.4,2.60144]
[1767129046997,2.4015,2962.2,2961.4,2.60344]
[1767129053697,0.001,2962.6,2961.5,2.4067]
[1767129053912,2.497,2962.5,2961.5,2.4067]
[1767129056375,2.497,2962.5,2961.5,2.44046667]
[1767129056703,2.497,2962.5,2961.7,2.4067]
[1767129060676,2.498,2962.5,2961.7,2.4067]
[1767129060909,0.03375542,2962.4,2961.5,0.886]
[1767129061077,2.282,2962.3,2961.5,0.886]
[1767129061411,2.282,2962.3,2961.5,3.2389]
[1767129061646,2.282,2962.3,2961.5,1.21009]
[1767129061777,2.282,2962.3,2961.5,3.2389]
[1767129063408,2.282,2962.1,2961.5,2.3529]
[1767129069018,2.282,2962.1,2961.4,0.002]
[1767129069196,2.31575542,2962.1,2961.1,2.3529]
[1767129069396,2.282,2961.9,2961.1,2.3529]
[1767129072313,2.282,2961.9,2961.0,0.002]
[1767129072507,2.282,2961.9,2960.6,0.002]
[1767129072508,2.282,2961.9,2960.7,2.3529]
[1767129077624,2.4162,2961.7,2960.7,2.3529]
[1767129077827,2.4162,2961.5,2960.7,2.58839]
[1767129080505,2.4162,2961.5,2960.8,2.2564]
[1767129080706,1.9033,2962.0,2961.4,2.2564]
[1767129081100,1.9033,2962.0,2961.4,2.29016781]
[1767129081320,1.9033,2962.0,2961.4,2.2564]
[1767129086429,1.9043,2962.0,2961.4,2.2564]
[1767129087941,1.9043,2962.0,2961.4,2.96780272]
[1767129093549,1.9033,2961.9,2961.4,2.96780272]
[1767129094049,1.9033,2961.9,2961.4,2.2564]
[1767129095040,1.9033,2961.9,2961.5,0.03376667]
[1767129095350,1.9033,2961.9,2961.5,2.29016667]
[1767129097244,0.001,2962.0,2961.5,2.29016667]
[1767129097859,1.9043,2962.0,2961.5,2.29016667]
[1767129102262,1.9043,2962.0,2961.5,2.2564]
[1767129102938,1.9043,2962.0,2961.5,2.2584]
[1767129107170,1.9033,2961.9,2961.5,2.2584]
[1767129111573,1.9043,2961.9,2961.5,2.2584]
[1767129114423,1.9043,2961.9,2961.0,2.4994]
[1767129114709,1.9013,2961.7,2961.0,2.4994]
[1767129115505,1.9013,2961.7,2961.0,7.35702715]
[1767129116002,1.9013,2961.7,2961.0,4.85762715]
[1767129116207,1.9013,2961.7,2961.1,2.4994]
[1767129119309,1.9013,2961.7,2961.1,2.9163068]
[1767129121285,1.9013,2961.7,2961.1,0.4169068]
[1767129121586,1.9013,2961.7,2961.1,2.467]
[1767129140938,1.9023,2961.7,2961.1,2.467]
[1767129145951,1.8993,2961.5,2960.8,2.3086]
[1767129146147,0.001,2961.9,2961.0,4.85869126]
[1767129146356,0.001,2961.9,2961.1,2.79446913]
[1767129153747,0.001,2961.9,2961.3,2.3086]
[1767129162171,0.001,2961.9,2961.3,2.3106]
[1767129169561,0.001,2962.0,2961.3,4.86069126]
[1767129169784,6.431,2962.4,2961.7,2.2991]
[1767129169975,7.0743,2962.4,2961.7,2.2991]
[1767129170171,0.001,2962.3,2961.7,2.2991]
[1767129172384,6.431,2962.4,2961.7,2.2991]
[1767129172588,6.432,2962.4,2961.7,2.2991]
[1767129172782,0.001,2962.3,2961.7,2.2991]
[1767129172979,0.001,2962.3,2961.7,3.01487913]
[1767129173180,0.001,2962.3,2961.8,2.2991]
[1767129176988,0.002,2962.3,2961.8,2.2991]
[1767129177192,0.001,2962.2,2961.8,2.2991]
[1767129179787,0.001,2962.2,2961.4,2.4185]
[1767129179987,0.001,2962.2,2961.6,2.4185]
[1767129182891,0.001,2962.2,2961.3,2.4205]
[1767129183285,0.001,2962.2,2961.3,0.001]
[1767129183286,0.03375542,2962.1,2961.3,0.001]
[1767129183916,0.03375542,2962.1,2961.5,0.002]
[1767129184079,3.40975375,2962.1,2961.5,0.002]
[1767129184377,0.34097538,2962.0,2961.5,0.002]
[1767129184578,0.887,2961.9,2961.5,0.002]
[1767129192711,0.03375542,2961.8,2961.3,0.001]
[1767129193689,8.2687854,2961.8,2961.0,0.002]
[1767129193883,0.91557854,2961.7,2961.0,0.002]
[1767129194109,0.03375542,2961.6,2961.0,0.002]
[1767129196522,0.94933396,2961.7,2961.0,2.3327]
[1767129196753,2.4080958,2961.9,2961.0,2.3327]
[1767129197226,2.4080958,2961.9,2961.0,0.002]
[1767129197522,0.03375542,2961.8,2961.0,0.002]
[1767129206540,4.89374104,2961.8,2961.0,0.002]
[1767129209241,11.32474104,2961.8,2961.0,0.002]
[1767129209426,11.29098562,2961.8,2961.0,0.002]
[1767129209634,0.03375542,2961.7,2961.0,0.002]
[1767129224263,0.03375542,2961.7,2960.6,0.888]
[1767129224264,4.85998562,2961.2,2960.6,0.888]
[1767129224416,4.85998562,2961.4,2960.6,0.888]
[1767129224822,0.03375542,2961.5,2960.6,0.888]
[1767129225136,0.4893741,2961.4,2960.6,0.888]
[1767129225342,0.4893741,2961.4,2960.6,3.2187]
[1767129227252,0.4893741,2961.4,2960.6,2.3327]
[1767129235870,0.001,2961.7,2960.8,2.3985]
[1767129236047,0.001,2961.7,2961.0,2.3985]
[1767129237171,0.001,2961.4,2961.0,2.3985]
[1767129245684,0.001,2961.4,2960.8,2.3333]
[1767129247980,0.001,2961.4,2960.7,0.887]
[1767129248355,0.001,2961.4,2960.7,3.2203]
[1767129251955,0.001,2961.4,2960.7,1.69542856]
[1767129252158,0.001,2961.4,2960.8,2.3333]
[1767129258583,0.001,2961.7,2961.0,2.4636]
[1767129258767,0.001,2961.6,2961.0,2.4636]
[1767129261669,0.001,2961.5,2961.0,2.4636]
[1767129261867,0.001,2961.5,2961.1,0.24636]
[1767129267377,0.001,2961.5,2961.1,2.4636]
[1767129270198,0.002,2961.5,2961.1,2.4636]
[1767129270495,0.001,2961.4,2961.1,2.4636]
[1767129272098,0.001,2961.6,2960.9,2.4636]
[1767129272301,6.3878506,2961.8,2961.2,2.4636]
[1767129272500,1.5230958,2961.9,2961.4,2.4636]
[1767129272718,1.5220958,2961.9,2961.4,2.4636]
[1767129273002,1.5220958,2961.9,2961.4,2.49736781]
[1767129273203,1.5220958,2961.9,2961.4,2.4636]
[1767129273510,1.5220958,2961.9,2961.6,2.4636]
[1767129277709,1.5230958,2961.9,2961.6,2.4636]
[1767129285814,1.5220958,2961.9,2961.6,2.4636]
[1767129288817,1.5231,2962.2,2961.6,2.2569]
[1767129290517,0.001,2962.3,2961.6,2.51474863]
[1767129290720,1.5241,2962.5,2961.8,2.2569]
[1767129294419,0.001,2962.5,2961.8,2.2569]
[1767129294618,1.5241,2962.5,2961.8,2.2569]
[1767129300023,1.5241,2962.5,2961.8,2.2589]
[1767129300226,1.5241,2962.5,2962.0,2.2546]
[1767129300835,0.001,2962.5,2962.0,2.28836097]
[1767129301022,0.001,2962.8,2962.2,4.85902638]
[1767129301215,0.001,2962.8,2962.3,2.2546]
[1767129301411,0.001,2962.9,2962.5,2.2546]
[1767129303736,1.5271,2962.9,2962.5,2.2546]
[1767129304030,1.5271,2962.9,2962.2,0.886]
[1767129304031,1.5261,2962.7,2962.2,0.886]
[1767129304425,1.5261,2962.7,2962.2,3.1406]
[1767129307033,1.5271,2962.7,2962.2,3.1406]
[1767129311737,1.5271,2962.7,2962.2,0.886]
[1767129311946,1.5271,2962.7,2962.3,2.2546]
[1767129316742,0.001,2963.0,2962.4,2.33095641]
[1767129317046,0.001,2963.2,2962.5,2.2972]
[1767129317436,1.5311,2963.2,2962.5,2.2972]
[1767129326368,0.001,2963.2,2962.5,2.2972]
[1767129327342,1.5311,2963.2,2962.5,2.2972]
[1767129327542,1.5311,2963.2,2962.5,2.558346]
[1767129329873,1.5311,2963.2,2962.5,2.560346]
[1767129331776,1.5321,2963.3,2962.8,2.2972]
[1767129332069,1.5321,2963.3,2962.5,0.263146]
[1767129332070,1.5321,2963.3,2963.0,2.2972]
[1767129332575,1.5321,2963.3,2963.0,2.61552]
[1767129332873,0.001,2963.3,2963.0,2.61552]
[1767129335159,1.5311,2963.5,2963.1,2.2972]
[1767129336567,0.001,2963.3,2963.1,2.2972]
[1767129337373,0.001,2963.7,2963.0,0.31832]
[1767129337549,0.001,2963.7,2963.1,2.2972]
[1767129340560,4.85512558,2963.7,2963.1,2.2972]
[1767129340763,1.5341,2963.7,2963.1,2.2972]
[1767129341880,0.001,2963.7,2963.1,2.2972]
[1767129342483,0.001,2963.7,2962.9,0.886]
[1767129342484,1.5341,2963.9,2963.0,2.2972]
[1767129342678,0.001,2963.9,2963.2,2.2972]
[1767129343183,1.5351,2963.9,2963.2,2.2972]
[1767129343367,0.001,2963.7,2963.2,2.2972]
[1767129344579,2.3827,2963.5,2963.0,2.2972]
[1767129347760,2.2805,2963.1,2962.3,0.31426]
[1767129347959,2.2805,2963.1,2962.6,3.3015]
[1767129348260,2.2805,2963.1,2962.7,2.4155]
[1767129349162,2.2805,2963.3,2962.7,2.4155]
[1767129349961,2.2805,2963.5,2962.7,2.4155]
[1767129350187,2.2805,2963.5,2962.8,0.33015]
[1767129350485,2.2805,2963.5,2962.9,2.4155]
[1767129351065,4.85512558,2963.7,2962.9,2.44925071]
[1767129351492,2.2805,2963.6,2962.9,2.44925071]
[1767129351991,2.2805,2963.6,2962.9,2.45125071]
[1767129352187,2.2805,2963.6,2962.9,2.69564007]
[1767129352394,2.2805,2963.4,2962.9,2.69564007]
[1767129352764,0.001,2963.5,2962.9,2.69564007]
[1767129353290,0.001,2963.7,2963.0,2.4155]
[1767129353484,0.001,2963.7,2963.2,2.4155]
[1767129353876,2.2815,2963.7,2963.2,2.4155]
[1767129354078,2.99516256,2963.7,2963.2,2.4155]
[1767129358008,0.001,2963.9,2963.1,5.74012558]
[1767129358298,2.2815,2963.9,2963.4,2.4155]
[1767129358873,0.001,2963.9,2963.4,2.4155]
[1767129361589,7.17002558,2964.4,2963.2,2.3398]
[1767129362096,7.17002558,2964.4,2963.4,2.3398]
[1767129362097,2.3159,2964.4,2963.4,2.3398]
[1767129362394,2.3159,2964.4,2963.6,2.3398]
[1767129362582,2.3159,2964.4,2963.8,2.3398]
[1767129362988,0.001,2964.4,2963.8,2.3398]
[1767129363297,2.3149,2964.3,2963.8,2.3398]
[1767129363493,2.3149,2964.3,2963.9,0.32258]
[1767129363701,2.3149,2964.3,2963.9,2.3398]
[1767129363894,2.3159,2964.4,2963.9,2.3398]
[1767129365499,0.001,2964.5,2963.7,0.886]
[1767129365500,0.001,2964.5,2963.8,2.3398]
[1767129366079,0.001,2964.9,2963.8,2.3398]
[1767129366799,2.3159,2964.9,2963.8,2.3398]
[1767129367006,2.3159,2964.9,2963.7,5.74012558]
[1767129367007,2.3159,2964.9,2964.0,2.3398]
[1767129368505,2.3149,2964.8,2964.0,2.3398]
[1767129368812,0.001,2964.5,2964.0,2.3398]
[1767129369189,2.3149,2964.8,2964.0,2.3398]
[1767129369486,0.001,2964.9,2964.0,2.3398]
[1767129369702,0.001,2964.9,2964.2,2.3398]
[1767129370010,0.001,2964.9,2964.4,2.3398]
[1767129370879,2.3149,2965.4,2964.7,4.85412558]
[1767129371208,2.3159,2965.6,2965.0,2.3398]
[1767129371378,2.3149,2965.4,2964.8,0.886]
[1767129371976,2.3149,2965.2,2964.2,2.3398]
[1767129372175,2.3149,2964.8,2964.2,2.3398]
[1767129372810,3.37224196,2965.4,2964.2,2.3398]
[1767129372811,2.3149,2965.3,2964.2,2.3398]
[1767129373680,2.3149,2965.1,2964.2,2.3398]
[1767129374008,0.23269,2965.6,2964.1,3.2258]
[1767129374009,2.3149,2964.9,2964.1,3.2258]
[1767129374210,2.3149,2964.7,2964.1,2.3398]
[1767129374377,2.3149,2964.7,2964.2,3.2258]
[1767129374581,2.3149,2964.7,2964.2,3.54838]
[1767129374983,2.3149,2965.1,2964.3,2.3398]
[1767129375994,2.3149,2964.9,2964.3,2.3398]
[1767129377510,2.3149,2964.9,2964.2,0.886]
[1767129377511,2.4361,2964.9,2964.2,0.886]
[1767129377720,2.4361,2964.9,2964.3,2.3149]
[1767129377921,2.4361,2964.9,2964.4,2.3149]
[1767129378127,2.4361,2964.8,2964.3,1.11749]
[1767129378887,2.4361,2964.8,2964.3,3.2009]
[1767129379428,2.4361,2964.8,2964.4,2.3149]
[1767129380120,2.4371,2965.3,2964.5,2.4228325]
[1767129380422,2.4371,2965.3,2964.5,2.3891]
[1767129386326,0.001,2965.3,2964.5,2.3891]
[1767129386626,2.4371,2965.3,2964.7,2.3891]
[1767129386824,2.4371,2965.3,2964.9,2.3891]
[1767129390943,2.4371,2965.3,2964.6,0.23891]
[1767129391106,0.03375542,2965.2,2964.6,2.3891]
[1767129391308,2.4361,2965.1,2964.2,0.886]
[1767129391524,2.67981,2965.1,2964.2,0.886]
[1767129391723,2.46985542,2965.1,2964.3,2.3079]
[1767129393035,2.4361,2965.1,2964.3,2.3079]
[1767129398952,2.4361,2965.1,2964.3,2.3099]
[1767129404486,0.03375542,2965.0,2964.3,0.002]
[1767129404627,2.4361,2964.8,2964.3,0.002]
[1767129405250,2.4361,2964.8,2964.3,2.3099]
[1767129405452,2.4361,2964.8,2964.3,2.62949]
[1767129405758,2.4361,2964.8,2964.3,2.3099]
[1767129406647,0.886,2965.1,2964.3,2.3099]
[1767129406835,2.2929,2965.0,2964.3,2.3099]
[1767129421370,2.2939,2965.0,2964.3,2.3099]
[1767129436222,2.3835,2964.9,2964.3,0.002]
[1767129436387,2.3835,2964.9,2963.8,0.002]
[1767129436388,2.64674542,2964.9,2964.1,3.1959]
[1767129436716,2.61299,2964.9,2964.3,0.002]
[1767129438320,2.3835,2964.9,2964.3,0.002]
[1767129438517,2.3835,2964.9,2964.3,2.3119]
[1767129439821,0.001,2965.0,2964.3,2.34563477]
[1767129439822,2.3845,2965.0,2964.3,2.34563477]
[1767129440120,0.001,2965.0,2964.3,2.34563477]
[1767129440319,2.3845,2965.1,2964.4,2.3089]
[1767129440489,2.3845,2965.3,2964.6,2.3079]
[1767129440687,2.3845,2965.3,2964.8,2.3079]
[1767129442026,0.001,2965.3,2964.8,2.3079]
[1767129442231,2.3835,2965.5,2964.8,2.3069]
[1767129443396,0.001,2965.3,2964.8,2.3069]
[1767129443596,0.001,2965.3,2965.0,2.3069]
[1767129447929,2.3845,2965.3,2965.0,2.3069]
[1767129448326,2.3845,2965.3,2964.9,0.31929]
[1767129448519,2.3835,2965.1,2964.7,0.886]
[1767129449126,2.3835,2965.1,2964.7,3.1929]
[1767129449414,2.3835,2965.1,2964.7,3.53563635]
[1767129449614,2.3835,2965.1,2964.8,2.3069]
[1767129450538,2.3845,2965.3,2964.8,2.3069]
[1767129450732,2.3845,2965.3,2964.8,2.3089]
[1767129454919,0.001,2965.6,2965.2,2.3059]
[1767129455123,0.001,2965.6,2965.3,3.02129665]
[1767129455348,2.3845,2965.6,2965.3,2.3059]
[1767129457145,0.001,2965.6,2965.3,2.3059]
[1767129460553,2.3845,2965.6,2964.9,2.3059]
[1767129460855,3.37233533,2966.2,2965.0,2.3096]
[1767129460856,2.3787702,2965.9,2965.0,2.3096]
[1767129461055,2.3787702,2965.9,2965.2,2.3096]
[1767129461243,2.3787702,2965.9,2965.3,2.3096]
[1767129463549,0.001,2966.2,2965.5,2.386]
[1767129463855,0.001,2966.2,2965.7,2.386]
[1767129464030,0.001,2966.2,2965.8,2.386]
[1767129464236,2.3845,2966.2,2965.8,2.386]
[1767129466842,0.001,2965.9,2965.8,2.386]
[1767129467158,2.4473,2966.1,2965.8,2.386]
[1767129469959,0.001,2966.2,2965.8,2.386]
[1767129470168,2.4483,2966.2,2965.8,2.386]
[1767129470873,2.4483,2966.2,2965.7,0.885]
[1767129471066,2.69323,2966.2,2965.3,0.002]
[1767129471236,2.69323,2966.2,2965.3,2.3275]
[1767129471964,2.4483,2966.2,2965.4,2.3255]
[1767129472974,0.001,2966.2,2965.6,2.3255]
[1767129473168,0.001,2966.2,2965.8,2.3255]
[1767129473363,0.001,2966.3,2965.8,2.3255]
[1767129475253,0.001,2966.3,2966.0,2.3255]
[1767129475777,0.001,2966.2,2966.0,2.3255]
[1767129475960,0.001,2966.3,2966.0,2.3255]
[1767129478564,2.4473,2966.4,2965.8,4.84806645]
[1767129478768,3.32657229,2966.7,2966.4,2.3255]
[1767129479282,2.4473,2966.7,2966.4,2.3255]
[1767129479482,2.4483,2966.8,2966.4,2.3255]
[1767129481607,2.4483,2966.8,2966.0,0.23255]
[1767129481608,2.4473,2966.7,2966.1,2.3255]
[1767129483799,2.4473,2966.7,2965.8,0.885]
[1767129483800,0.001,2966.8,2966.3,2.2671]
[1767129484394,0.001,2966.7,2966.3,2.2671]
[1767129490600,4.84906645,2967.4,2966.0,4.84806645]
[1767129490601,2.3587,2967.4,2966.7,2.2671]
[1767129490779,2.3587,2967.4,2967.0,2.2671]
[1767129491575,2.3577,2967.2,2966.6,0.885]
[1767129491771,2.3577,2967.2,2966.5,2.2671]
[1767129491999,0.001,2966.7,2966.5,2.2671]
[1767129492204,2.3587,2966.7,2966.3,0.002]
[1767129492404,2.3577,2966.6,2966.3,0.002]
[1767129492706,0.001,2966.7,2966.3,2.2691]
[1767129493899,2.3587,2966.7,2966.3,2.2691]
[1767129495677,2.3587,2966.7,2966.3,0.002]
[1767129496077,2.3587,2966.7,2966.3,2.3556]
[1767129496280,0.001,2966.7,2966.3,2.3556]
[1767129500391,0.001,2966.7,2966.4,2.58916]
[1767129500611,0.001,2966.7,2966.4,2.3536]
[1767129502817,2.3054,2967.1,2966.4,2.3536]
[1767129506339,2.3064,2967.1,2966.4,2.3536]